[Event "Titled Tuesday Blitz April 12 Late 2022"]
[White "Andreikin, Dmitry"]
[Black "Shimanov, Aleksandr"]
[WhiteFideId "4158814"]
[BlackFideId "4198603"]
[WhiteElo "2736"]
[BlackElo "2636"]
[Result "1-0"]
[Round "09"]
[TimeControl "180+1"]
[Date "2022.04.12"]
[WhiteClock "0:00:05"]
[BlackClock "0:00:04"]

1. d4 {[%clk 0:03:00]}  d5 {[%clk 0:02:54]} 2. c4 {[%clk 0:03:01]}  e6 {[%clk 0:02:54]} 3. Nf3 {[%clk 0:02:59]}  Nf6 {[%clk 0:02:54]} 4. g3 {[%clk 0:02:59]}  Nbd7 {[%clk 0:02:49]} 5. Bg2 {[%clk 0:02:58]}  dxc4 {[%clk 0:02:46]} 6. O-O {[%clk 0:02:57]}  c6 {[%clk 0:02:46]} 7. a4 {[%clk 0:02:49]}  a5 {[%clk 0:02:40]} 8. Nbd2 {[%clk 0:02:35]}  b5 {[%clk 0:02:38]} 9. Ne5 {[%clk 0:02:35]}  Nxe5 {[%clk 0:02:34]} 10. dxe5 {[%clk 0:02:36]}  Nd5 {[%clk 0:02:35]} 11. Ne4 {[%clk 0:02:36]}  Be7 {[%clk 0:02:31]} 12. Nd6+ {[%clk 0:02:35]}  Bxd6 {[%clk 0:02:21]} 13. exd6 {[%clk 0:02:36]}  Bb7 {[%clk 0:01:01]} 14. e4 {[%clk 0:02:18]}  Nb4 {[%clk 0:01:00]} 15. e5 {[%clk 0:02:15]}  Qd7 {[%clk 0:01:00]} 16. Qg4 {[%clk 0:02:07]}  O-O {[%clk 0:00:59]} 17. Bg5 {[%clk 0:01:54]}  Kh8 {[%clk 0:00:58]} 18. Qh4 {[%clk 0:01:50]}  c5 {[%clk 0:00:53]} 19. Bxb7 {[%clk 0:01:41]}  Qxb7 {[%clk 0:00:54]} 20. axb5 {[%clk 0:01:41]}  Qxb5 {[%clk 0:00:53]} 21. Rfc1 {[%clk 0:01:32]}  Nd3 {[%clk 0:00:49]} 22. Qxc4 {[%clk 0:01:10]}  Qxc4 {[%clk 0:00:48]} 23. Rxc4 {[%clk 0:01:11]}  Nxe5 {[%clk 0:00:40]} 24. Rxc5 {[%clk 0:01:11]}  Nf3+ {[%clk 0:00:39]} 25. Kg2 {[%clk 0:01:11]}  Nxg5 {[%clk 0:00:39]} 26. Rxg5 {[%clk 0:01:11]}  f5 {[%clk 0:00:34]} 27. g4 {[%clk 0:01:04]}  g6 {[%clk 0:00:22]} 28. gxf5 {[%clk 0:00:59]}  exf5 {[%clk 0:00:22]} 29. Rg3 {[%clk 0:00:58]}  Rfd8 {[%clk 0:00:22]} 30. Rd3 {[%clk 0:00:55]}  Ra6 {[%clk 0:00:20]} 31. b4 {[%clk 0:00:45]}  a4 {[%clk 0:00:13]} 32. b5 {[%clk 0:00:45]}  Raxd6 {[%clk 0:00:12]} 33. Rxd6 {[%clk 0:00:44]}  Rxd6 {[%clk 0:00:13]} 34. Rxa4 {[%clk 0:00:44]}  Rb6 {[%clk 0:00:12]} 35. Rb4 {[%clk 0:00:41]}  Kg7 {[%clk 0:00:12]} 36. Kf3 {[%clk 0:00:34]}  Kf6 {[%clk 0:00:12]} 37. h4 {[%clk 0:00:31]}  Ke5 {[%clk 0:00:11]} 38. Ke3 {[%clk 0:00:31]}  h6 {[%clk 0:00:08]} 39. Rb1 {[%clk 0:00:28]}  g5 {[%clk 0:00:09]} 40. f4+ {[%clk 0:00:26]}  gxf4+ {[%clk 0:00:08]} 41. Kf3 {[%clk 0:00:27]}  h5 {[%clk 0:00:03]} 42. Rb2 {[%clk 0:00:25]}  Kd4 {[%clk 0:00:01]} 43. Kxf4 {[%clk 0:00:25]}  Kc3 {[%clk 0:00:01]} 44. Rb1 {[%clk 0:00:24]}  Kc2 {[%clk 0:00:02]} 45. Rb4 {[%clk 0:00:19]}  Kc3 {[%clk 0:00:02]} 46. Rb1 {[%clk 0:00:20]}  Kc2 {[%clk 0:00:02]} 47. Rf1 {[%clk 0:00:09]}  Rxb5 {[%clk 0:00:02]} 48. Kg5 {[%clk 0:00:09]}  Rb4 {[%clk 0:00:03]} 49. Rxf5 {[%clk 0:00:06]}  Kd3 {[%clk 0:00:02]} 50. Kxh5 {[%clk 0:00:06]}  Ke4 {[%clk 0:00:03]} 51. Kg5 {[%clk 0:00:06]}  Rb8 {[%clk 0:00:03]} 52. Rf7 {[%clk 0:00:04]}  Rg8+ {[%clk 0:00:03]} 53. Kf6 {[%clk 0:00:04]}  Rh8 {[%clk 0:00:04]} 54. Kg5 {[%clk 0:00:04]}  Rg8+ {[%clk 0:00:04]} 55. Kh6 {[%clk 0:00:04]}  Rh8+ {[%clk 0:00:05]} 56. Rh7 {[%clk 0:00:04]}  Rd8 {[%clk 0:00:02]} 57. h5 {[%clk 0:00:03]}  Kf5 {[%clk 0:00:03]} 58. Rf7+ {[%clk 0:00:04]}  Ke6 {[%clk 0:00:03]} 59. Kg6 {[%clk 0:00:04]}  Rd1 {[%clk 0:00:02]} 60. Rf6+ {[%clk 0:00:04]}  Ke7 {[%clk 0:00:02]} 61. Rf7+ {[%clk 0:00:04]}  Ke6 {[%clk 0:00:02]} 62. Rf4 {[%clk 0:00:03]}  Rg1+ {[%clk 0:00:02]} 63. Kh7 {[%clk 0:00:04]}  Ke7 {[%clk 0:00:03]} 64. h6 {[%clk 0:00:04]}  Rg2 {[%clk 0:00:03]} 65. Ra4 {[%clk 0:00:04]}  Rg1 {[%clk 0:00:03]} 66. Ra7+ {[%clk 0:00:04]}  Kf8 {[%clk 0:00:02]} 67. Rg7 {[%clk 0:00:04]}  Rf1 {[%clk 0:00:03]} 68. Kh8 {[%clk 0:00:04]}  Rf2 {[%clk 0:00:03]} 69. Ra7 {[%clk 0:00:04]}  Rf1 {[%clk 0:00:03]} 70. Ra6 {[%clk 0:00:04]}  Kf7 {[%clk 0:00:03]} 71. Ra7+ {[%clk 0:00:04]}  Kf8 {[%clk 0:00:03]} 72. Rc7 {[%clk 0:00:04]}  Rf2 {[%clk 0:00:03]} 73. Rg7 {[%clk 0:00:04]}  Rf1 {[%clk 0:00:03]} 74. Kh7 {[%clk 0:00:04]}  Rf2 {[%clk 0:00:03]} 75. Rg5 {[%clk 0:00:04]}  Kf7 {[%clk 0:00:03]} 76. Rg4 {[%clk 0:00:04]}  Rf1 {[%clk 0:00:03]} 77. Rd4 {[%clk 0:00:04]}  Rf2 {[%clk 0:00:03]} 78. Rd5 {[%clk 0:00:04]}  Rf1 {[%clk 0:00:03]} 79. Ra5 {[%clk 0:00:04]}  Rf2 {[%clk 0:00:03]} 80. Ra7+ {[%clk 0:00:05]}  Kf8 {[%clk 0:00:02]} 81. Kg6 {[%clk 0:00:04]}  Rg2+ {[%clk 0:00:02]} 82. Kf6 {[%clk 0:00:05]}  Rf2+ {[%clk 0:00:03]} 83. Ke5 {[%clk 0:00:05]}  Re2+ {[%clk 0:00:03]} 84. Kf5 {[%clk 0:00:05]}  Rf2+ {[%clk 0:00:03]} 85. Kg6 {[%clk 0:00:06]}  Rg2+ {[%clk 0:00:04]} 86. Kh5 {[%clk 0:00:06]}  Rh2+ {[%clk 0:00:04]} 87. Kg5 {[%clk 0:00:06]}  Rg2+ {[%clk 0:00:04]} 88. Kf4 {[%clk 0:00:07]}  Rf2+ {[%clk 0:00:04]} 89. Kg3 {[%clk 0:00:07]}  Rf1 {[%clk 0:00:04]} 90. Ra8+ {[%clk 0:00:05]} 1-0


[Site "https://www.chess.com"]

[Event "Titled Tuesday Blitz April 12 Late 2022"]
[White "Ansh M Shah"]
[Black "Hardaway, Brewington"]
[WhiteFideId "25033379"]
[BlackFideId "30941849"]
[WhiteElo "1819"]
[BlackElo "1768"]
[Result "1-0"]
[Round "09"]
[TimeControl "180+1"]
[Date "2022.04.13"]
[WhiteClock "0:00:48"]
[BlackClock "0:00:38"]

1. d4 {[%clk 0:03:00]}  Nf6 {[%clk 0:02:59]} 2. c4 {[%clk 0:03:01]}  e6 {[%clk 0:02:59]} 3. Nf3 {[%clk 0:03:00]}  d5 {[%clk 0:02:59]} 4. g3 {[%clk 0:03:00]}  c6 {[%clk 0:02:58]} 5. Bg2 {[%clk 0:03:01]}  Be7 {[%clk 0:02:59]} 6. O-O {[%clk 0:03:02]}  O-O {[%clk 0:02:59]} 7. b3 {[%clk 0:03:02]}  b6 {[%clk 0:02:59]} 8. Nbd2 {[%clk 0:03:02]}  Nbd7 {[%clk 0:02:59]} 9. Bb2 {[%clk 0:03:02]}  Ba6 {[%clk 0:02:59]} 10. Rc1 {[%clk 0:03:03]}  Rc8 {[%clk 0:02:58]} 11. Re1 {[%clk 0:03:03]}  c5 {[%clk 0:02:58]} 12. e4 {[%clk 0:02:58]}  dxe4 {[%clk 0:02:57]} 13. Nxe4 {[%clk 0:02:59]}  Nxe4 {[%clk 0:02:58]} 14. Rxe4 {[%clk 0:03:00]}  Bb7 {[%clk 0:02:58]} 15. Re1 {[%clk 0:02:55]}  cxd4 {[%clk 0:02:58]} 16. Nxd4 {[%clk 0:02:54]}  Bxg2 {[%clk 0:02:57]} 17. Kxg2 {[%clk 0:02:54]}  Bf6 {[%clk 0:02:57]} 18. Re2 {[%clk 0:02:46]}  Qc7 {[%clk 0:02:55]} 19. Nb5 {[%clk 0:02:42]}  Qb7+ {[%clk 0:02:54]} 20. Kg1 {[%clk 0:02:43]}  Rcd8 {[%clk 0:02:48]} 21. Qf1 {[%clk 0:02:38]}  Bxb2 {[%clk 0:02:45]} 22. Rxb2 {[%clk 0:02:39]}  Nc5 {[%clk 0:02:46]} 23. Rd1 {[%clk 0:02:33]}  Qf3 {[%clk 0:02:45]} 24. Rbd2 {[%clk 0:02:30]}  Rxd2 {[%clk 0:02:36]} 25. Rxd2 {[%clk 0:02:31]}  a6 {[%clk 0:02:36]} 26. Nd4 {[%clk 0:02:27]}  Qe4 {[%clk 0:02:35]} 27. Qe2 {[%clk 0:02:21]}  Qb7 {[%clk 0:02:31]} 28. Qf3 {[%clk 0:02:19]}  Qc7 {[%clk 0:02:25]} 29. Qc6 {[%clk 0:02:12]}  Qe5 {[%clk 0:02:16]} 30. Nf3 {[%clk 0:02:05]}  Qc3 {[%clk 0:01:58]} 31. Qxb6 {[%clk 0:01:45]}  Ne4 {[%clk 0:01:25]} 32. Rd8 {[%clk 0:01:39]}  Nf6 {[%clk 0:00:59]} 33. Qd6 {[%clk 0:01:03]}  Ne8 {[%clk 0:00:39]} 34. Qe7 {[%clk 0:00:51]}  Qf6 {[%clk 0:00:38]} 35. Rxe8 {[%clk 0:00:48]} 1-0


[Site "https://www.chess.com"]

[Event "Titled Tuesday Blitz April 12 Late 2022"]
[White "Bachmann, Axel"]
[Black "Janturin, Artur"]
[WhiteFideId "3700488"]
[BlackFideId "4130022"]
[WhiteElo "2587"]
[BlackElo "2360"]
[Result "0-1"]
[Round "09"]
[TimeControl "180+1"]
[Date "2022.04.13"]
[WhiteClock "0:00:04"]
[BlackClock "0:00:31"]

1. d4 {[%clk 0:03:00]}  e6 {[%clk 0:02:59]} 2. c4 {[%clk 0:03:00]}  b6 {[%clk 0:02:59]} 3. Nf3 {[%clk 0:03:00]}  Bb7 {[%clk 0:02:58]} 4. g3 {[%clk 0:03:01]}  Bb4+ {[%clk 0:02:44]} 5. Bd2 {[%clk 0:03:01]}  Bxf3 {[%clk 0:02:42]} 6. exf3 {[%clk 0:03:01]}  Bxd2+ {[%clk 0:02:41]} 7. Qxd2 {[%clk 0:02:58]}  d5 {[%clk 0:02:39]} 8. f4 {[%clk 0:02:55]}  Ne7 {[%clk 0:02:16]} 9. Bg2 {[%clk 0:02:49]}  Nbc6 {[%clk 0:02:15]} 10. O-O {[%clk 0:02:42]}  dxc4 {[%clk 0:02:09]} 11. Na3 {[%clk 0:02:33]}  Nxd4 {[%clk 0:02:01]} 12. Rfd1 {[%clk 0:02:04]}  c5 {[%clk 0:02:01]} 13. Nxc4 {[%clk 0:01:54]}  Rc8 {[%clk 0:01:48]} 14. h4 {[%clk 0:01:31]}  O-O {[%clk 0:01:47]} 15. h5 {[%clk 0:01:31]}  h6 {[%clk 0:01:46]} 16. Rac1 {[%clk 0:01:28]}  Nd5 {[%clk 0:01:31]} 17. Ne5 {[%clk 0:01:16]}  Nf6 {[%clk 0:01:29]} 18. b4 {[%clk 0:01:07]}  Nxh5 {[%clk 0:01:23]} 19. bxc5 {[%clk 0:01:02]}  bxc5 {[%clk 0:01:24]} 20. Nd3 {[%clk 0:00:48]}  Qb6 {[%clk 0:01:14]} 21. Nxc5 {[%clk 0:00:36]}  Rxc5 {[%clk 0:01:15]} 22. Rxc5 {[%clk 0:00:35]}  Qxc5 {[%clk 0:01:12]} 23. Qxd4 {[%clk 0:00:35]}  Qa5 {[%clk 0:01:05]} 24. a4 {[%clk 0:00:22]}  Nf6 {[%clk 0:01:04]} 25. Rc1 {[%clk 0:00:19]}  Rd8 {[%clk 0:01:02]} 26. Qc4 {[%clk 0:00:19]}  Qd2 {[%clk 0:00:54]} 27. Bf3 {[%clk 0:00:17]}  h5 {[%clk 0:00:54]} 28. Rc2 {[%clk 0:00:17]}  Qe1+ {[%clk 0:00:51]} 29. Kg2 {[%clk 0:00:17]}  h4 {[%clk 0:00:51]} 30. Re2 {[%clk 0:00:16]}  Qa1 {[%clk 0:00:50]} 31. g4 {[%clk 0:00:15]}  Rd1 {[%clk 0:00:49]} 32. Kh2 {[%clk 0:00:15]}  Nd5 {[%clk 0:00:41]} 33. Qc8+ {[%clk 0:00:13]}  Kh7 {[%clk 0:00:41]} 34. Qc2+ {[%clk 0:00:12]}  g6 {[%clk 0:00:39]} 35. Bxd5 {[%clk 0:00:11]}  Rxd5 {[%clk 0:00:40]} 36. Qe4 {[%clk 0:00:08]}  Qf1 {[%clk 0:00:38]} 37. Rc2 {[%clk 0:00:06]}  Rd1 {[%clk 0:00:37]} 38. Rc7 {[%clk 0:00:05]}  Qxf2+ {[%clk 0:00:33]} 39. Qg2 {[%clk 0:00:04]}  Qxf4+ {[%clk 0:00:32]} 40. Kh3 {[%clk 0:00:04]}  Rd3+ {[%clk 0:00:31]} 0-1


[Site "https://www.chess.com"]

[Event "Titled Tuesday Blitz April 12 Late 2022"]
[White "Caruana, Fabiano"]
[Black "Dubov, Daniil"]
[WhiteFideId "2020009"]
[BlackFideId "24126055"]
[WhiteElo "2744"]
[BlackElo "2791"]
[Result "1-0"]
[Round "09"]
[TimeControl "180+1"]
[Date "2022.04.12"]
[WhiteClock "0:00:05"]
[BlackClock "0:00:01"]

1. c4 {[%clk 0:02:59]}  c6 {[%clk 0:02:58]} 2. d4 {[%clk 0:02:59]}  d5 {[%clk 0:02:58]} 3. Nf3 {[%clk 0:02:59]}  Nf6 {[%clk 0:02:58]} 4. e3 {[%clk 0:03:00]}  Bf5 {[%clk 0:02:56]} 5. Nc3 {[%clk 0:03:00]}  e6 {[%clk 0:02:57]} 6. Nh4 {[%clk 0:03:01]}  Bg6 {[%clk 0:02:57]} 7. Be2 {[%clk 0:03:00]}  Be7 {[%clk 0:02:56]} 8. O-O {[%clk 0:03:00]}  O-O {[%clk 0:02:54]} 9. Nxg6 {[%clk 0:02:59]}  hxg6 {[%clk 0:02:54]} 10. b3 {[%clk 0:02:59]}  Nbd7 {[%clk 0:02:52]} 11. Bb2 {[%clk 0:02:59]}  a6 {[%clk 0:02:52]} 12. Rc1 {[%clk 0:02:57]}  Re8 {[%clk 0:02:43]} 13. Bf3 {[%clk 0:02:57]}  Bd6 {[%clk 0:02:39]} 14. g3 {[%clk 0:02:56]}  Qe7 {[%clk 0:02:39]} 15. Rc2 {[%clk 0:02:49]}  Rad8 {[%clk 0:02:35]} 16. Bg2 {[%clk 0:02:41]}  Ba3 {[%clk 0:02:33]} 17. Ba1 {[%clk 0:02:40]}  Bd6 {[%clk 0:02:24]} 18. Qe2 {[%clk 0:02:38]}  g5 {[%clk 0:02:20]} 19. Rd1 {[%clk 0:02:36]}  Nf8 {[%clk 0:02:19]} 20. e4 {[%clk 0:02:33]}  dxe4 {[%clk 0:02:18]} 21. Nxe4 {[%clk 0:02:34]}  Nxe4 {[%clk 0:02:18]} 22. Bxe4 {[%clk 0:02:35]}  Nd7 {[%clk 0:02:11]} 23. Bg2 {[%clk 0:02:34]}  Nf6 {[%clk 0:02:07]} 24. h3 {[%clk 0:02:31]}  Rd7 {[%clk 0:02:04]} 25. Qe3 {[%clk 0:02:26]}  g4 {[%clk 0:01:43]} 26. h4 {[%clk 0:02:26]}  Red8 {[%clk 0:01:44]} 27. Rcd2 {[%clk 0:02:26]}  Bb4 {[%clk 0:01:30]} 28. Rd3 {[%clk 0:02:25]}  Ba5 {[%clk 0:01:30]} 29. Qg5 {[%clk 0:02:19]}  Bb6 {[%clk 0:01:27]} 30. h5 {[%clk 0:01:51]}  e5 {[%clk 0:00:55]} 31. Re1 {[%clk 0:01:17]}  Bxd4 {[%clk 0:00:42]} 32. Bxd4 {[%clk 0:01:14]}  Rxd4 {[%clk 0:00:43]} 33. Rxd4 {[%clk 0:01:13]}  Rxd4 {[%clk 0:00:44]} 34. Rxe5 {[%clk 0:01:12]}  Qd8 {[%clk 0:00:38]} 35. Re3 {[%clk 0:00:40]}  Rd1+ {[%clk 0:00:34]} 36. Kh2 {[%clk 0:00:40]}  Rd2 {[%clk 0:00:29]} 37. h6 {[%clk 0:00:26]}  g6 {[%clk 0:00:27]} 38. Qf4 {[%clk 0:00:26]}  Nh5 {[%clk 0:00:19]} 39. Re8+ {[%clk 0:00:19]}  Qxe8 {[%clk 0:00:19]} 40. Qxd2 {[%clk 0:00:20]}  Kh7 {[%clk 0:00:19]} 41. b4 {[%clk 0:00:20]}  Qe7 {[%clk 0:00:17]} 42. a4 {[%clk 0:00:20]}  Nf6 {[%clk 0:00:15]} 43. b5 {[%clk 0:00:17]}  axb5 {[%clk 0:00:14]} 44. cxb5 {[%clk 0:00:18]}  cxb5 {[%clk 0:00:11]} 45. axb5 {[%clk 0:00:19]}  Ng8 {[%clk 0:00:10]} 46. b6 {[%clk 0:00:15]}  Qb4 {[%clk 0:00:03]} 47. Qd7 {[%clk 0:00:10]}  Nxh6 {[%clk 0:00:02]} 48. Qxb7 {[%clk 0:00:10]}  Qc5 {[%clk 0:00:02]} 49. Qc7 {[%clk 0:00:06]}  Qh5+ {[%clk 0:00:01]} 50. Kg1 {[%clk 0:00:05]}  Qf5 {[%clk 0:00:01]} 51. b7 {[%clk 0:00:05]}  Qb1+ {[%clk 0:00:01]} 52. Bf1 {[%clk 0:00:05]} 1-0


[Site "https://www.chess.com"]

[Event "Titled Tuesday Blitz April 12 Late 2022"]
[White "Dimakiling, Oliver"]
[Black "Janaszak, Dawid"]
[WhiteFideId "5202248"]
[BlackFideId "1119206"]
[WhiteElo "2426"]
[BlackElo "2199"]
[Result "1-0"]
[Round "09"]
[TimeControl "180+1"]
[Date "2022.04.12"]
[WhiteClock "0:01:27"]
[BlackClock "0:00:16"]

1. c4 {[%clk 0:03:00]}  g6 {[%clk 0:02:59]} 2. Nc3 {[%clk 0:03:00]}  Bg7 {[%clk 0:03:00]} 3. g3 {[%clk 0:03:01]}  Nf6 {[%clk 0:02:59]} 4. Bg2 {[%clk 0:03:01]}  d6 {[%clk 0:02:58]} 5. Nf3 {[%clk 0:03:00]}  c5 {[%clk 0:02:58]} 6. O-O {[%clk 0:03:00]}  O-O {[%clk 0:02:59]} 7. d4 {[%clk 0:02:59]}  Nc6 {[%clk 0:02:58]} 8. d5 {[%clk 0:02:59]}  Na5 {[%clk 0:02:57]} 9. Qd3 {[%clk 0:02:59]}  a6 {[%clk 0:02:55]} 10. e4 {[%clk 0:02:59]}  b5 {[%clk 0:02:52]} 11. Nd2 {[%clk 0:02:49]}  Nd7 {[%clk 0:02:44]} 12. f4 {[%clk 0:02:44]}  bxc4 {[%clk 0:02:35]} 13. Nxc4 {[%clk 0:02:43]}  Nxc4 {[%clk 0:02:36]} 14. Qxc4 {[%clk 0:02:43]}  Nb6 {[%clk 0:02:29]} 15. Qe2 {[%clk 0:02:43]}  a5 {[%clk 0:02:29]} 16. Rd1 {[%clk 0:02:35]}  Ba6 {[%clk 0:02:28]} 17. Qe1 {[%clk 0:02:35]}  a4 {[%clk 0:02:26]} 18. a3 {[%clk 0:02:34]}  Bc4 {[%clk 0:02:19]} 19. e5 {[%clk 0:02:33]}  Bb3 {[%clk 0:02:16]} 20. Rd3 {[%clk 0:02:32]}  Bc4 {[%clk 0:02:07]} 21. Rd1 {[%clk 0:02:27]}  Bb3 {[%clk 0:02:06]} 22. Rd2 {[%clk 0:02:26]}  Nc4 {[%clk 0:02:03]} 23. Re2 {[%clk 0:02:24]}  Qb8 {[%clk 0:01:48]} 24. e6 {[%clk 0:02:19]}  f5 {[%clk 0:01:48]} 25. h3 {[%clk 0:02:15]}  Ra6 {[%clk 0:01:31]} 26. Kh2 {[%clk 0:02:14]}  Rb6 {[%clk 0:01:30]} 27. g4 {[%clk 0:02:12]}  fxg4 {[%clk 0:01:29]} 28. hxg4 {[%clk 0:02:12]}  Bd4 {[%clk 0:01:18]} 29. Qh4 {[%clk 0:02:10]}  g5 {[%clk 0:01:08]} 30. Qxg5+ {[%clk 0:02:07]}  Kh8 {[%clk 0:01:09]} 31. Qh4 {[%clk 0:02:07]}  Rg8 {[%clk 0:00:50]} 32. Ne4 {[%clk 0:02:06]}  Bd1 {[%clk 0:00:48]} 33. Re1 {[%clk 0:01:38]}  Rxg4 {[%clk 0:00:45]} 34. Qh3 {[%clk 0:01:37]}  Rxg2+ {[%clk 0:00:20]} 35. Qxg2 {[%clk 0:01:37]}  Bh5 {[%clk 0:00:19]} 36. Ng5 {[%clk 0:01:30]}  Bxb2 {[%clk 0:00:17]} 37. Rb1 {[%clk 0:01:29]}  Bxc1 {[%clk 0:00:17]} 38. Rbxc1 {[%clk 0:01:27]}  Rb2 {[%clk 0:00:16]} 39. Rc2 {[%clk 0:01:27]}  Rxc2 {[%clk 0:00:16]} 40. Qxc2 {[%clk 0:01:28]}  Qb3 {[%clk 0:00:16]} 41. Qxh7# {[%clk 0:01:27]} 1-0


[Site "https://www.chess.com"]

[Event "Titled Tuesday Blitz April 12 Late 2022"]
[White "Estrada Nieto, Julian"]
[Black "Curtis, John"]
[WhiteFideId "5101018"]
[BlackFideId "3200256"]
[WhiteElo "2252"]
[BlackElo "2203"]
[Result "1-0"]
[Round "09"]
[TimeControl "180+1"]
[Date "2022.04.13"]
[WhiteClock "0:00:16"]
[BlackClock "0:00:06"]

1. e4 {[%clk 0:03:00]}  c5 {[%clk 0:02:58]} 2. Nf3 {[%clk 0:03:00]}  d6 {[%clk 0:02:57]} 3. d4 {[%clk 0:03:00]}  cxd4 {[%clk 0:02:57]} 4. Qxd4 {[%clk 0:03:00]}  Bd7 {[%clk 0:02:56]} 5. Bc4 {[%clk 0:02:57]}  Nf6 {[%clk 0:02:51]} 6. Nc3 {[%clk 0:02:55]}  Nc6 {[%clk 0:02:51]} 7. Qd3 {[%clk 0:02:55]}  e6 {[%clk 0:02:43]} 8. Bf4 {[%clk 0:02:53]}  e5 {[%clk 0:02:20]} 9. Bg5 {[%clk 0:02:52]}  Be7 {[%clk 0:02:18]} 10. Bxf6 {[%clk 0:02:52]}  Bxf6 {[%clk 0:02:10]} 11. Qxd6 {[%clk 0:02:47]}  Be7 {[%clk 0:02:09]} 12. Qd3 {[%clk 0:02:38]}  Bg4 {[%clk 0:02:00]} 13. O-O-O {[%clk 0:02:31]}  Qxd3 {[%clk 0:01:58]} 14. Rxd3 {[%clk 0:02:29]}  Bxf3 {[%clk 0:01:49]} 15. Rxf3 {[%clk 0:02:28]}  O-O {[%clk 0:01:45]} 16. Nd5 {[%clk 0:02:28]}  Bc5 {[%clk 0:01:28]} 17. c3 {[%clk 0:02:25]}  Kh8 {[%clk 0:01:27]} 18. b4 {[%clk 0:02:15]}  Bd6 {[%clk 0:01:24]} 19. Rd1 {[%clk 0:02:13]}  Rad8 {[%clk 0:01:14]} 20. Rfd3 {[%clk 0:02:06]}  Bb8 {[%clk 0:01:07]} 21. Ne3 {[%clk 0:02:02]}  Rxd3 {[%clk 0:01:04]} 22. Rxd3 {[%clk 0:02:02]}  Rd8 {[%clk 0:00:58]} 23. Kc2 {[%clk 0:01:51]}  Rxd3 {[%clk 0:00:52]} 24. Kxd3 {[%clk 0:01:51]}  f6 {[%clk 0:00:51]} 25. Bd5 {[%clk 0:01:50]}  Nd8 {[%clk 0:00:50]} 26. c4 {[%clk 0:01:47]}  g6 {[%clk 0:00:50]} 27. c5 {[%clk 0:01:45]}  Kg7 {[%clk 0:00:50]} 28. Nc4 {[%clk 0:01:45]}  Kf8 {[%clk 0:00:49]} 29. g3 {[%clk 0:01:30]}  h6 {[%clk 0:00:42]} 30. Ke3 {[%clk 0:01:30]}  Ke7 {[%clk 0:00:41]} 31. f4 {[%clk 0:01:29]}  exf4+ {[%clk 0:00:40]} 32. gxf4 {[%clk 0:01:29]}  g5 {[%clk 0:00:41]} 33. fxg5 {[%clk 0:01:26]}  fxg5 {[%clk 0:00:41]} 34. h3 {[%clk 0:01:26]}  h5 {[%clk 0:00:36]} 35. Kf3 {[%clk 0:01:25]}  Bc7 {[%clk 0:00:33]} 36. Ne3 {[%clk 0:01:24]}  b6 {[%clk 0:00:32]} 37. Nf5+ {[%clk 0:01:22]}  Kf6 {[%clk 0:00:32]} 38. a4 {[%clk 0:01:02]}  bxc5 {[%clk 0:00:32]} 39. bxc5 {[%clk 0:01:03]}  Ne6 {[%clk 0:00:29]} 40. Bxe6 {[%clk 0:01:02]}  Kxe6 {[%clk 0:00:29]} 41. Ng7+ {[%clk 0:00:59]}  Kd7 {[%clk 0:00:29]} 42. Nxh5 {[%clk 0:00:50]}  Kc6 {[%clk 0:00:30]} 43. Kg4 {[%clk 0:00:46]}  Bd8 {[%clk 0:00:30]} 44. Kf5 {[%clk 0:00:43]}  Kxc5 {[%clk 0:00:30]} 45. Ng7 {[%clk 0:00:39]}  Kb4 {[%clk 0:00:27]} 46. Ne6 {[%clk 0:00:38]}  Be7 {[%clk 0:00:27]} 47. e5 {[%clk 0:00:30]}  Kxa4 {[%clk 0:00:21]} 48. Nd4 {[%clk 0:00:30]}  a5 {[%clk 0:00:17]} 49. Nc6 {[%clk 0:00:29]}  Kb5 {[%clk 0:00:08]} 50. Nxe7 {[%clk 0:00:27]}  Kc5 {[%clk 0:00:07]} 51. e6 {[%clk 0:00:22]}  a4 {[%clk 0:00:07]} 52. Ng6 {[%clk 0:00:20]}  a3 {[%clk 0:00:07]} 53. e7 {[%clk 0:00:20]}  a2 {[%clk 0:00:07]} 54. e8=Q {[%clk 0:00:20]}  a1=Q {[%clk 0:00:08]} 55. Qc8+ {[%clk 0:00:20]}  Kd6 {[%clk 0:00:07]} 56. Qd8+ {[%clk 0:00:20]}  Kc6 {[%clk 0:00:07]} 57. Qf6+ {[%clk 0:00:18]}  Qxf6+ {[%clk 0:00:04]} 58. Kxf6 {[%clk 0:00:18]}  g4 {[%clk 0:00:05]} 59. hxg4 {[%clk 0:00:18]}  Kd7 {[%clk 0:00:05]} 60. Kf7 {[%clk 0:00:17]}  Kd6 {[%clk 0:00:05]} 61. g5 {[%clk 0:00:18]}  Kd5 {[%clk 0:00:06]} 62. Nf4+ {[%clk 0:00:18]}  Ke4 {[%clk 0:00:07]} 63. g6 {[%clk 0:00:18]}  Kxf4 {[%clk 0:00:08]} 64. g7 {[%clk 0:00:19]}  Kg5 {[%clk 0:00:08]} 65. g8=Q+ {[%clk 0:00:20]}  Kf5 {[%clk 0:00:09]} 66. Qg6+ {[%clk 0:00:19]}  Ke5 {[%clk 0:00:10]} 67. Qg5+ {[%clk 0:00:19]}  Kd6 {[%clk 0:00:09]} 68. Qf5 {[%clk 0:00:18]}  Kc6 {[%clk 0:00:09]} 69. Qe5 {[%clk 0:00:18]}  Kd7 {[%clk 0:00:08]} 70. Qe6+ {[%clk 0:00:17]}  Kc7 {[%clk 0:00:09]} 71. Ke7 {[%clk 0:00:17]}  Kb7 {[%clk 0:00:08]} 72. Qd6 {[%clk 0:00:16]}  Kc8 {[%clk 0:00:08]} 73. Qd7+ {[%clk 0:00:16]}  Kb8 {[%clk 0:00:07]} 74. Kd6 {[%clk 0:00:16]}  Ka8 {[%clk 0:00:06]} 75. Kc6 {[%clk 0:00:16]} 1-0


[Site "https://www.chess.com"]